Department family,Entity,Date,Expense type,Expense area,Supplier,Transaction number,Amount,VAT registration number
Department for Business Energy and Industrial Strategy,Intellectual Property Office,11/04/2017,Accommodation,People Places & Serv Directorate,Kemp Construction Ltd,6268C,-3457.2,Not Applicable
Department for Business Energy and Industrial Strategy,Intellectual Property Office,20/04/2017,Accommodation,People Places & Serv Directorate,HFX Ltd,26358,-1245.38,Not Applicable
Department for Business Energy and Industrial Strategy,Intellectual Property Office,13/04/2017,Accommodation,People Places & Serv Directorate,SIG TRADING LTD,7033-60016537,65.83,Not Applicable
Department for Business Energy and Industrial Strategy,Intellectual Property Office,06/04/2017,Accommodation,People Places & Serv Directorate,Kabin Hire Ltd,474339,74.4,Not Applicable
Department for Business Energy and Industrial Strategy,Intellectual Property Office,06/04/2017,Accommodation,People Places & Serv Directorate,Kabin Hire Ltd,474340,127.51,Not Applicable
Department for Business Energy and Industrial Strategy,Intellectual Property Office,12/04/2017,Accommodation,People Places & Serv Directorate,HSM UK Ltd,90848594,151.8,Not Applicable
Department for Business Energy and Industrial Strategy,Intellectual Property Office,06/04/2017,Accommodation,People Places & Serv Directorate,Kabin Hire Ltd,474341,160.8,Not Applicable
Department for Business Energy and Industrial Strategy,Intellectual Property Office,24/04/2017,Accommodation,People Places & Serv Directorate,Elliott Sound,1448,206.3,Not Applicable
Department for Business Energy and Industrial Strategy,Intellectual Property Office,03/04/2017,Accommodation,People Places & Serv Directorate,Thomas Waste Management Ltd,171282,324,Not Applicable
Department for Business Energy and Industrial Strategy,Intellectual Property Office,10/04/2017,Accommodation,People Places & Serv Directorate,Thomas Waste Management Ltd,171735,336,Not Applicable
Department for Business Energy and Industrial Strategy,Intellectual Property Office,25/04/2017,Accommodation,People Places & Serv Directorate,Thomas Waste Management Ltd,172264,336,Not Applicable
Department for Business Energy and Industrial Strategy,Intellectual Property Office,28/04/2017,Accommodation,People Places & Serv Directorate,Glasdon UK Ltd,728146,392.46,Not Applicable
Department for Business Energy and Industrial Strategy,Intellectual Property Office,07/04/2017,Accommodation,People Places & Serv Directorate,Caerphilly County Borough Council,82980567,434,Not Applicable
Department for Business Energy and Industrial Strategy,Intellectual Property Office,20/04/2017,Accommodation,People Places & Serv Directorate,Posturite Ltd,INV0417903,466.69,Not Applicable
Department for Business Energy and Industrial Strategy,Intellectual Property Office,28/04/2017,Accommodation,People Places & Serv Directorate,HC Slingsby PLC,SI211351,550.8,Not Applicable
Department for Business Energy and Industrial Strategy,Intellectual Property Office,19/04/2017,Accommodation,People Places & Serv Directorate,Thomas Waste Management Ltd,171942,672,Not Applicable
Department for Business Energy and Industrial Strategy,Intellectual Property Office,28/04/2017,Accommodation,People Places & Serv Directorate,HC Slingsby PLC,SI1214443,712.98,Not Applicable
Department for Business Energy and Industrial Strategy,Intellectual Property Office,28/04/2017,Accommodation,People Places & Serv Directorate,HC Slingsby PLC,SI213575,722.52,Not Applicable
Department for Business Energy and Industrial Strategy,Intellectual Property Office,10/04/2017,Accommodation,People Places & Serv Directorate,EDF ENERGY,2725101,762,Not Applicable
Department for Business Energy and Industrial Strategy,Intellectual Property Office,13/04/2017,Accommodation,People Places & Serv Directorate,Newey & Eyre,432049480,861.12,Not Applicable
Department for Business Energy and Industrial Strategy,Intellectual Property Office,03/04/2017,Accommodation,People Places & Serv Directorate,Thomas Waste Management Ltd,171268,972,Not Applicable
Department for Business Energy and Industrial Strategy,Intellectual Property Office,20/04/2017,Accommodation,People Places & Serv Directorate,HFX Ltd,26359,1020,Not Applicable
Department for Business Energy and Industrial Strategy,Intellectual Property Office,26/04/2017,Accommodation,People Places & Serv Directorate,Senator International Ltd,S01363334,1080,Not Applicable
Department for Business Energy and Industrial Strategy,Intellectual Property Office,24/04/2017,Accommodation,People Places & Serv Directorate,Glasdon UK Ltd,728061,1118.4,Not Applicable
Department for Business Energy and Industrial Strategy,Intellectual Property Office,26/04/2017,Accommodation,People Places & Serv Directorate,Senator International Ltd,S01366178,1179.07,Not Applicable
Department for Business Energy and Industrial Strategy,Intellectual Property Office,12/04/2017,Accommodation,People Places & Serv Directorate,Jaguar Building Services Ltd,71204,1267.19,Not Applicable
Department for Business Energy and Industrial Strategy,Intellectual Property Office,20/04/2017,Accommodation,People Places & Serv Directorate,SIG TRADING LTD,7033-60017677,1389.86,Not Applicable
Department for Business Energy and Industrial Strategy,Intellectual Property Office,19/04/2017,Accommodation,People Places & Serv Directorate,Shred It Ltd,9502352318,1789.2,Not Applicable
Department for Business Energy and Industrial Strategy,Intellectual Property Office,11/04/2017,Accommodation,People Places & Serv Directorate,Kemp Construction Ltd,6278,1917.6,Not Applicable
Department for Business Energy and Industrial Strategy,Intellectual Property Office,18/04/2017,Accommodation,People Places & Serv Directorate,Corona Energy,11951321,1975.21,Not Applicable
Department for Business Energy and Industrial Strategy,Intellectual Property Office,19/04/2017,Accommodation,People Places & Serv Directorate,UK Shared Business Services Ltd,SBS-14321,2315.86,Not Applicable
Department for Business Energy and Industrial Strategy,Intellectual Property Office,12/04/2017,Accommodation,People Places & Serv Directorate,Accelerate Cleaning Solutions Ltd,3482,2408.95,Not Applicable
Department for Business Energy and Industrial Strategy,Intellectual Property Office,25/04/2017,Accommodation,People Places & Serv Directorate,HSM UK Ltd,90852675,2459.2,Not Applicable
Department for Business Energy and Industrial Strategy,Intellectual Property Office,20/04/2017,Accommodation,People Places & Serv Directorate,HFX Ltd,26357,2962.25,Not Applicable
Department for Business Energy and Industrial Strategy,Intellectual Property Office,18/04/2017,Accommodation,People Places & Serv Directorate,Corona Energy,11951322,3071.2,Not Applicable
Department for Business Energy and Industrial Strategy,Intellectual Property Office,11/04/2017,Accommodation,People Places & Serv Directorate,ENGIE Services Limited,1800020314,3360,Not Applicable
Department for Business Energy and Industrial Strategy,Intellectual Property Office,11/04/2017,Accommodation,People Places & Serv Directorate,ENGIE Services Limited,1800020315,3360,Not Applicable
Department for Business Energy and Industrial Strategy,Intellectual Property Office,11/04/2017,Accommodation,People Places & Serv Directorate,Kemp Construction Ltd,6268,3457.2,Not Applicable
Department for Business Energy and Industrial Strategy,Intellectual Property Office,26/04/2017,Accommodation,People Places & Serv Directorate,Healthy Workstations Ltd,30257,3537.6,Not Applicable
Department for Business Energy and Industrial Strategy,Intellectual Property Office,06/04/2017,Accommodation,People Places & Serv Directorate,Quality Floorcare Ltd,15494,5760,Not Applicable
Department for Business Energy and Industrial Strategy,Intellectual Property Office,21/04/2017,Accommodation,People Places & Serv Directorate,Senator International Ltd,S01372066,6652.3,Not Applicable
Department for Business Energy and Industrial Strategy,Intellectual Property Office,12/04/2017,Accommodation,People Places & Serv Directorate,Kemp Construction Ltd,6279,6676.8,Not Applicable
Department for Business Energy and Industrial Strategy,Intellectual Property Office,06/04/2017,Accommodation,People Places & Serv Directorate,Department For Business Innovation & Ski,6.15E+11,7207.99,Not Applicable
Department for Business Energy and Industrial Strategy,Intellectual Property Office,06/04/2017,Accommodation,People Places & Serv Directorate,Department For Business Innovation & Ski,6.15E+11,7402.61,Not Applicable
Department for Business Energy and Industrial Strategy,Intellectual Property Office,10/04/2017,Accommodation,People Places & Serv Directorate,Newey & Eyre,432167808,7890.72,Not Applicable
Department for Business Energy and Industrial Strategy,Intellectual Property Office,06/04/2017,Accommodation,People Places & Serv Directorate,Department For Business Innovation & Ski,6.15E+11,9608.97,Not Applicable
Department for Business Energy and Industrial Strategy,Intellectual Property Office,07/04/2017,Accommodation,People Places & Serv Directorate,Senator International Ltd,S01373499,9766.8,Not Applicable
Department for Business Energy and Industrial Strategy,Intellectual Property Office,11/04/2017,Accommodation,People Places & Serv Directorate,Infineon Technologies,IRNPT1710,11500,Not Applicable
Department for Business Energy and Industrial Strategy,Intellectual Property Office,03/04/2017,Accommodation,People Places & Serv Directorate,Newport Locksmiths,31166,14338.75,Not Applicable
Department for Business Energy and Industrial Strategy,Intellectual Property Office,18/04/2017,Accommodation,People Places & Serv Directorate,EDF ENERGY,27562777,35813.44,Not Applicable
Department for Business Energy and Industrial Strategy,Intellectual Property Office,11/04/2017,Accommodation,People Places & Serv Directorate,D&M Mechanical Engineers Ltd,2890,36000,Not Applicable
Department for Business Energy and Industrial Strategy,Intellectual Property Office,11/04/2017,Accommodation,People Places & Serv Directorate,D&M Mechanical Engineers Ltd,2891,36000,Not Applicable
Department for Business Energy and Industrial Strategy,Intellectual Property Office,26/04/2017,Accommodation,People Places & Serv Directorate,D&M Mechanical Engineers Ltd,2908,36000,Not Applicable
Department for Business Energy and Industrial Strategy,Intellectual Property Office,26/04/2017,Accommodation,People Places & Serv Directorate,D&M Mechanical Engineers Ltd,2909,36000,Not Applicable
Department for Business Energy and Industrial Strategy,Intellectual Property Office,26/04/2017,Accommodation,People Places & Serv Directorate,D&M Mechanical Engineers Ltd,2912,36000,Not Applicable
Department for Business Energy and Industrial Strategy,Intellectual Property Office,06/04/2017,Accommodation,People Places & Serv Directorate,Department For Business Innovation & Ski,6.15E+11,44093.12,Not Applicable
Department for Business Energy and Industrial Strategy,Intellectual Property Office,13/04/2017,Accommodation,People Places & Serv Directorate,ADVANCED FIRE TECHNOLOGIES,332047,191629.44,Not Applicable
Department for Business Energy and Industrial Strategy,Intellectual Property Office,21/04/2017,Advertising Distribution,Innovation Directorate,Twitonomy.Com,H57720170425hcicintan,15.33,Not Applicable
Department for Business Energy and Industrial Strategy,Intellectual Property Office,26/04/2017,Advertising Distribution,Innovation Directorate,Amazon UK Marketplace,H57720170428tnhyqtjnp,28.98,Not Applicable
Department for Business Energy and Industrial Strategy,Intellectual Property Office,25/04/2017,Advertising Distribution,Innovation Directorate,Marksandspencer.Co,H57720170427xfbtieohw,64.69,Not Applicable
Department for Business Energy and Industrial Strategy,Intellectual Property Office,25/04/2017,Advertising Distribution,Innovation Directorate,Indisplay Ltd,H57720170427jhbsnhjip,254.6,Not Applicable
Department for Business Energy and Industrial Strategy,Intellectual Property Office,16/04/2017,Advertising Distribution,Trade Mark Directorate,Amazon UK Marketplace,H57720170418leeemqcix,3.19,Not Applicable
Department for Business Energy and Industrial Strategy,Intellectual Property Office,03/04/2017,Advertising Distribution,Innovation Directorate,Ryanair,H57720170406jssshploc,17,Not Applicable
Department for Business Energy and Industrial Strategy,Intellectual Property Office,22/04/2017,Advertising Distribution,Innovation Directorate,Campaignmonitor.Co,H57720170425hjjiyrudn,80.91,Not Applicable
Department for Business Energy and Industrial Strategy,Intellectual Property Office,27/04/2017,Advertising Distribution,Trade Mark Directorate,Fira Bcn Conexflow Ecomme,H57720170429qsfuylqqf,891.69,Not Applicable
Department for Business Energy and Industrial Strategy,Intellectual Property Office,20/04/2017,Advertising Distribution,Trade Mark Directorate,Paypal,H57720170425xpbpdcajo,270,Not Applicable
Department for Business Energy and Industrial Strategy,Intellectual Property Office,17/04/2017,Advertising Distribution,Trade Mark Directorate,Amazon UK Marketplace,H57720170419fiypljcnu,10.48,Not Applicable
Department for Business Energy and Industrial Strategy,Intellectual Property Office,17/04/2017,Advertising Distribution,Trade Mark Directorate,Amazon UK Marketplace,H57720170419omphywiba,1.85,Not Applicable
Department for Business Energy and Industrial Strategy,Intellectual Property Office,13/04/2017,Advertising Distribution,Trade Mark Directorate,Amazon UK Marketplace,H57720170415rdanzmdww,1.74,Not Applicable
Department for Business Energy and Industrial Strategy,Intellectual Property Office,20/04/2017,Advertising Distribution,Trade Mark Directorate,National Pen Promotion,H57720170422rbdhfhvdu,759.54,Not Applicable
Department for Business Energy and Industrial Strategy,Intellectual Property Office,03/04/2017,Books,Patent Directorate,Amazon UK Retail,H57720170405ngejqsswi,219.24,Not Applicable
Department for Business Energy and Industrial Strategy,Intellectual Property Office,01/04/2017,Books,Patent Directorate,Amazon UK Retail,H57720170404ogisymsjy,182.7,Not Applicable
Department for Business Energy and Industrial Strategy,Intellectual Property Office,02/04/2017,Books,Patent Directorate,Amazon UK Retail Amazon.C,H57720170404bertooyqw,219.24,Not Applicable
Department for Business Energy and Industrial Strategy,Intellectual Property Office,26/04/2017,Books,Innovation Directorate,Times Newspapers Ltd,H57720170429fwomephne,26,Not Applicable
Department for Business Energy and Industrial Strategy,Intellectual Property Office,11/04/2017,Books,Trade Mark Directorate,The Intellectual Property,H57720170413tgdcaqyid,-100,Not Applicable
Department for Business Energy and Industrial Strategy,Intellectual Property Office,11/04/2017,Books,Trade Mark Directorate,The Intellectual Property,H57720170413uepcermdx,-50,Not Applicable
Department for Business Energy and Industrial Strategy,Intellectual Property Office,08/04/2017,Books,Trade Mark Directorate,The Intellectual Property,H57720170411luabounzp,50,Not Applicable
Department for Business Energy and Industrial Strategy,Intellectual Property Office,08/04/2017,Books,Trade Mark Directorate,The Intellectual Property,H57720170411uomjorhdf,100,Not Applicable
Department for Business Energy and Industrial Strategy,Intellectual Property Office,04/04/2017,Books Newspaper Pub(central),Patent Directorate,Psi,H57720170405mkzqjatfg,40.45,Not Applicable
Department for Business Energy and Industrial Strategy,Intellectual Property Office,13/04/2017,Career Development Services,People Places & Serv Directorate,Digicert Inc,H57720170415jwchpfenf,259.5,Not Applicable
Department for Business Energy and Industrial Strategy,Intellectual Property Office,04/04/2017,Career Development Services,People Places & Serv Directorate,Amazon UK Marketplace,H57720170406yoxymrjpq,143.91,Not Applicable
Department for Business Energy and Industrial Strategy,Intellectual Property Office,27/04/2017,Career Development Services,People Places & Serv Directorate,Tesco Stores 2931,H57720170429ihxcgpbkf,8.5,Not Applicable
Department for Business Energy and Industrial Strategy,Intellectual Property Office,27/04/2017,Career Development Services,People Places & Serv Directorate,Subway,H57720170429syxsjlvug,126,Not Applicable
Department for Business Energy and Industrial Strategy,Intellectual Property Office,24/04/2017,Career Development Services,People Places & Serv Directorate,Amazon UK Marketplace,H57720170426wjfsgzuee,16.95,Not Applicable
Department for Business Energy and Industrial Strategy,Intellectual Property Office,15/04/2017,Career Development Services,People Places & Serv Directorate,Amazon UK Marketplace,H57720170418srhufovsc,53.1,Not Applicable
Department for Business Energy and Industrial Strategy,Intellectual Property Office,12/04/2017,Career Development Services,People Places & Serv Directorate,Amazon UK Retail Amazon.C,H57720170415lcrpcxfid,40.26,Not Applicable
Department for Business Energy and Industrial Strategy,Intellectual Property Office,11/04/2017,Career Development Services,IT Directorate,Dominos- Malpas Ro,H57720170413geioidcno,80.98,Not Applicable
Department for Business Energy and Industrial Strategy,Intellectual Property Office,10/04/2017,Career Development Services,People Places & Serv Directorate,"Coleg Gwent, Monmouth Le",H57720170412tleopiuby,395,Not Applicable
Department for Business Energy and Industrial Strategy,Intellectual Property Office,26/04/2017,Career Development Services,Copyright and Enforcement Directorate,Www.Cjsevents.Co.Uk,H57720170428eqtmgspyb,410,Not Applicable
Department for Business Energy and Industrial Strategy,Intellectual Property Office,30/03/2017,Career Development Services,Patent Directorate,Eb *devex Technical Co,H57720170404ohcsxuhnf,666,Not Applicable
Department for Business Energy and Industrial Strategy,Intellectual Property Office,07/04/2017,Career Development Services,People Places & Serv Directorate,The Chartered Institut,H57720170411cycreaplb,1081,Not Applicable
Department for Business Energy and Industrial Strategy,Intellectual Property Office,19/04/2017,Career Development Services,IT Directorate,Amazon UK Marketplace,H57720170421tvgonajtb,77.6,Not Applicable
Department for Business Energy and Industrial Strategy,Intellectual Property Office,26/04/2017,Career Development Services,Finance Directorate,Meetingzone Ltd,H57720170428lgvwexlbh,313.63,Not Applicable
Department for Business Energy and Industrial Strategy,Intellectual Property Office,27/04/2017,Career Development Services,People Places & Serv Directorate,Office For National St,H57720170429ckjbflrbm,9.7,Not Applicable
Department for Business Energy and Industrial Strategy,Intellectual Property Office,06/04/2017,Career Development Services,People Places & Serv Directorate,Eb *dimensions Of Dive,H57720170408vkyrrnhxv,97.35,Not Applicable
Department for Business Energy and Industrial Strategy,Intellectual Property Office,06/04/2017,Career Development Services,People Places & Serv Directorate,Www.Pmgltd.Co.Uk,H57720170408hhcoxdhop,594,Not Applicable
Department for Business Energy and Industrial Strategy,Intellectual Property Office,05/04/2017,Career Development Services,People Places & Serv Directorate,Amazon UK Marketplace,H57720170407moxdtikii,17.05,Not Applicable
Department for Business Energy and Industrial Strategy,Intellectual Property Office,05/04/2017,Cash At Bank/In Hand,Trade Mark Directorate,Patent Office,TOP UP,100,Not Applicable
Department for Business Energy and Industrial Strategy,Intellectual Property Office,03/04/2017,CIMS Printing,Patent Directorate,Aps Journals,H57720170405iobnbugzy,20.66,Not Applicable
Department for Business Energy and Industrial Strategy,Intellectual Property Office,04/04/2017,Entertainment,IT Directorate,Troia Cafe Restaurant,H57720170406oeofcbzie,500,Not Applicable
Department for Business Energy and Industrial Strategy,Intellectual Property Office,04/04/2017,Entertainment,IT Directorate,Rimad Limited T/a Troia,H57720170406ctxlhpxrf,179.55,Not Applicable
Department for Business Energy and Industrial Strategy,Intellectual Property Office,26/04/2017,Entertainment,Finance Directorate,Amazon UK Marketplace,H57720170428swmrsmyxt,28.74,Not Applicable
Department for Business Energy and Industrial Strategy,Intellectual Property Office,31/03/2017,Entertainment,International Policy Directorate,Marks&spencer Plc,H57720170404cwnrwltuq,59.05,Not Applicable
Department for Business Energy and Industrial Strategy,Intellectual Property Office,04/04/2017,Entertainment,Trade Mark Directorate,Therock/chocolatpeople,H57720170406njcghgeyp,684,Not Applicable
Department for Business Energy and Industrial Strategy,Intellectual Property Office,27/04/2017,Entertainment,People Places & Serv Directorate,Asda Superstore 4928,H57720170429putlsawtr,25.08,Not Applicable
Department for Business Energy and Industrial Strategy,Intellectual Property Office,06/04/2017,Fixed Telecoms Equipment,IT Directorate,1plex,H57720170408fbedkypqf,49.18,Not Applicable
Department for Business Energy and Industrial Strategy,Intellectual Property Office,06/04/2017,Fixed Telecoms Equipment,IT Directorate,Amazon UK Marketplace,H57720170408nvfedowsw,60.92,Not Applicable
Department for Business Energy and Industrial Strategy,Intellectual Property Office,03/04/2017,Fixed Telecoms Equipment,IT Directorate,Amazon UK Marketplace,H57720170405ycgosyhuw,60.5,Not Applicable
Department for Business Energy and Industrial Strategy,Intellectual Property Office,21/04/2017,Fixed Telecoms Equipment,IT Directorate,Apple Online Store Gbp,H57720170425osmeuhdcv,819,Not Applicable
Department for Business Energy and Industrial Strategy,Intellectual Property Office,12/04/2017,Information Technology,Projects,Advanced Business Solutions,ARXI/00001502,240.1,Not Applicable
Department for Business Energy and Industrial Strategy,Intellectual Property Office,25/04/2017,Information Technology,Finance Directorate,Officevibe Inc.,12802A,308.75,Not Applicable
Department for Business Energy and Industrial Strategy,Intellectual Property Office,13/04/2017,Information Technology,Trade Mark Directorate,British Standards Institution,400546952,480,Not Applicable
Department for Business Energy and Industrial Strategy,Intellectual Property Office,06/04/2017,Information Technology,IT Directorate,Mobatek SARL,AI1704-132263,661.47,Not Applicable
Department for Business Energy and Industrial Strategy,Intellectual Property Office,11/04/2017,Information Technology,Finance Directorate,Sedao Ltd,4369,910.8,Not Applicable
Department for Business Energy and Industrial Strategy,Intellectual Property Office,06/04/2017,Information Technology,Finance Directorate,Officevibe Inc.,12802,912.43,Not Applicable
Department for Business Energy and Industrial Strategy,Intellectual Property Office,05/04/2017,Information Technology,IT Directorate,Specialist Computer Centres Plc,OP/M286344,1040.04,Not Applicable
Department for Business Energy and Industrial Strategy,Intellectual Property Office,21/04/2017,Information Technology,IT Directorate,Ultima Risk Management,URM/105815,1170,Not Applicable
Department for Business Energy and Industrial Strategy,Intellectual Property Office,12/04/2017,Information Technology,Projects,Advanced Business Solutions,ARBK/99042374,1254,Not Applicable
Department for Business Energy and Industrial Strategy,Intellectual Property Office,04/04/2017,Information Technology,IT Directorate,MCSA GROUP LTD,S-INV+104556,1377.92,Not Applicable
Department for Business Energy and Industrial Strategy,Intellectual Property Office,26/04/2017,Information Technology,IT Directorate,Insight Direct (UK) Ltd,3351611,1489.61,Not Applicable
Department for Business Energy and Industrial Strategy,Intellectual Property Office,20/04/2017,Information Technology,IT Directorate,Computacenter (UK) ltd,3881154006,1693.54,Not Applicable
Department for Business Energy and Industrial Strategy,Intellectual Property Office,06/04/2017,Information Technology,IT Directorate,Open Text AG,SUK08157710,2107.55,Not Applicable
Department for Business Energy and Industrial Strategy,Intellectual Property Office,19/04/2017,Information Technology,IT Directorate,Capita Business Services  Ltd,LO10191347,2223.41,Not Applicable
Department for Business Energy and Industrial Strategy,Intellectual Property Office,06/04/2017,Information Technology,IT Directorate,Capita Business Services  Ltd,LO10190202,2338.08,Not Applicable
Department for Business Energy and Industrial Strategy,Intellectual Property Office,06/04/2017,Information Technology,IT Directorate,Capita Business Services  Ltd,LO10190202,2569.87,Not Applicable
Department for Business Energy and Industrial Strategy,Intellectual Property Office,19/04/2017,Information Technology,IT Directorate,Capita Business Services  Ltd,LO10191347,2617.92,Not Applicable
Department for Business Energy and Industrial Strategy,Intellectual Property Office,06/04/2017,Information Technology,IT Directorate,Capita Business Services  Ltd,LO10190202,2731.93,Not Applicable
Department for Business Energy and Industrial Strategy,Intellectual Property Office,26/04/2017,Information Technology,IT Directorate,TeckChek Europe Ltd,170431,2880,Not Applicable
Department for Business Energy and Industrial Strategy,Intellectual Property Office,07/04/2017,Information Technology,IT Directorate,LA International Computer Consultants Lt,LA428067,3146.88,Not Applicable
Department for Business Energy and Industrial Strategy,Intellectual Property Office,24/04/2017,Information Technology,IT Directorate,LA International Computer Consultants Lt,LA430898,3146.88,Not Applicable
Department for Business Energy and Industrial Strategy,Intellectual Property Office,06/04/2017,Information Technology,IT Directorate,Capita Business Services  Ltd,LO10190202,3290.93,Not Applicable
Department for Business Energy and Industrial Strategy,Intellectual Property Office,28/04/2017,Information Technology,IT Directorate,Zoho Corporation PVT Limited,3115649,3300.3,Not Applicable
Department for Business Energy and Industrial Strategy,Intellectual Property Office,06/04/2017,Information Technology,IT Directorate,Capita Business Services  Ltd,LO10190202,4285.49,Not Applicable
Department for Business Energy and Industrial Strategy,Intellectual Property Office,04/04/2017,Information Technology,IT Directorate,Phoenix Software Ltd,OP/I796040,4392,Not Applicable
Department for Business Energy and Industrial Strategy,Intellectual Property Office,05/04/2017,Information Technology,IT Directorate,Quest Software International,4700170115,4666.66,Not Applicable
Department for Business Energy and Industrial Strategy,Intellectual Property Office,11/04/2017,Information Technology,IT Directorate,Quest Software International,4700170115A,4666.66,Not Applicable
Department for Business Energy and Industrial Strategy,Intellectual Property Office,24/04/2017,Information Technology,IT Directorate,Verisign,520004982,4720.87,Not Applicable
Department for Business Energy and Industrial Strategy,Intellectual Property Office,20/04/2017,Information Technology,Projects,CDI Group plc,44767,4799.4,Not Applicable
Department for Business Energy and Industrial Strategy,Intellectual Property Office,21/04/2017,Information Technology,IT Directorate,Capita Business Services  Ltd,LO10192911,5246.13,Not Applicable
Department for Business Energy and Industrial Strategy,Intellectual Property Office,24/04/2017,Information Technology,IT Directorate,LA International Computer Consultants Lt,LA430897,6607.74,Not Applicable
Department for Business Energy and Industrial Strategy,Intellectual Property Office,20/04/2017,Information Technology,IT Directorate,Trustmarque Solutions Ltd,2255903,8040,Not Applicable
Department for Business Energy and Industrial Strategy,Intellectual Property Office,11/04/2017,Information Technology,Projects,Top Level Computing,4917,8210.64,Not Applicable
Department for Business Energy and Industrial Strategy,Intellectual Property Office,06/04/2017,Information Technology,IT Directorate,Phoenix Software Ltd,OP/I796064,8412.98,Not Applicable
Department for Business Energy and Industrial Strategy,Intellectual Property Office,24/04/2017,Information Technology,Projects,SANDHILL CONSULTANTS LTD,IN4058970,9120,Not Applicable
Department for Business Energy and Industrial Strategy,Intellectual Property Office,03/04/2017,Information Technology,Copyright and Enforcement Directorate,Occam DM Ltd,29957,11761.39,Not Applicable
Department for Business Energy and Industrial Strategy,Intellectual Property Office,06/04/2017,Information Technology,IT Directorate,Capita Business Services  Ltd,LO10190202,11775.12,Not Applicable
Department for Business Energy and Industrial Strategy,Intellectual Property Office,11/04/2017,Information Technology,Patent Directorate,STN,9340310034,13290.63,Not Applicable
Department for Business Energy and Industrial Strategy,Intellectual Property Office,06/04/2017,Information Technology,IT Directorate,Responsiv Solutions Limited,RSL0229,13845.22,Not Applicable
Department for Business Energy and Industrial Strategy,Intellectual Property Office,24/04/2017,Information Technology,IT Directorate,Equal Experts UK Limited,INV-2402,15000,Not Applicable
Department for Business Energy and Industrial Strategy,Intellectual Property Office,24/04/2017,Information Technology,IT Directorate,Equal Experts UK Limited,INV-2527,15000,Not Applicable
Department for Business Energy and Industrial Strategy,Intellectual Property Office,20/04/2017,Information Technology,IT Directorate,Responsiv Solutions Limited,RSL0204,15881.94,Not Applicable
Department for Business Energy and Industrial Strategy,Intellectual Property Office,06/04/2017,Information Technology,IT Directorate,Capita Business Services  Ltd,LO10190202,18918.2,Not Applicable
Department for Business Energy and Industrial Strategy,Intellectual Property Office,06/04/2017,Information Technology,IT Directorate,Softcat Ltd,INV01591930,22177,Not Applicable
Department for Business Energy and Industrial Strategy,Intellectual Property Office,07/04/2017,Information Technology,IT Directorate,Evolve Secure Solutions Ltd,SI001276,25344,Not Applicable
Department for Business Energy and Industrial Strategy,Intellectual Property Office,24/04/2017,Information Technology,IT Directorate,Sword SA,SIP-EUA-F1704082,50717.39,Not Applicable
Department for Business Energy and Industrial Strategy,Intellectual Property Office,05/04/2017,Information Technology,Finance Directorate,Companies House,S0001863052,124173,Not Applicable
Department for Business Energy and Industrial Strategy,Intellectual Property Office,24/04/2017,Information Technology,Patent Directorate,European Patent Office,40268526,136442.67,Not Applicable
Department for Business Energy and Industrial Strategy,Intellectual Property Office,06/04/2017,Information Technology,Patent Directorate,Clarivate Analytics (UK) Limited,835850248,146908.5,Not Applicable
Department for Business Energy and Industrial Strategy,Intellectual Property Office,07/04/2017,Information Technology,IT Directorate,Trustmarque Solutions Ltd,2257494,276191.58,Not Applicable
Department for Business Energy and Industrial Strategy,Intellectual Property Office,07/04/2017,Information Technology,IT Directorate,Trustmarque Solutions Ltd,2257490,290175.6,Not Applicable
Department for Business Energy and Industrial Strategy,Intellectual Property Office,25/04/2017,Land & Buildings Gross,Trade Mark Directorate,Clarity,TR0060,9634.33,Not Applicable
Department for Business Energy and Industrial Strategy,Intellectual Property Office,19/04/2017,Land & Buildings Gross,Trade Mark Directorate,Clarity,TR0059,10582.6,Not Applicable
Department for Business Energy and Industrial Strategy,Intellectual Property Office,11/04/2017,Land & Buildings Gross,Trade Mark Directorate,Clarity,TR0058,13772.84,Not Applicable
Department for Business Energy and Industrial Strategy,Intellectual Property Office,03/04/2017,Land & Buildings Gross,Trade Mark Directorate,Clarity,TR0057,17767.81,Not Applicable
Department for Business Energy and Industrial Strategy,Intellectual Property Office,11/04/2017,Legal & Hearings,Copyright and Enforcement Directorate,SE Dawson,CRT030417,15.2,Not Applicable
Department for Business Energy and Industrial Strategy,Intellectual Property Office,18/04/2017,Legal & Hearings,Copyright and Enforcement Directorate,Manny Lewis,CRT180417,22.5,Not Applicable
Department for Business Energy and Industrial Strategy,Intellectual Property Office,18/04/2017,Legal & Hearings,Copyright and Enforcement Directorate,PB Eve,CRT180417,83.99,Not Applicable
Department for Business Energy and Industrial Strategy,Intellectual Property Office,19/04/2017,Legal & Hearings,Trade Mark Directorate,Government Legal Department,439861,98.66,Not Applicable
Department for Business Energy and Industrial Strategy,Intellectual Property Office,26/04/2017,Legal & Hearings,Projects,Berwin Leighton Paisner,BSUT-CCRA-37652A,350,Not Applicable
Department for Business Energy and Industrial Strategy,Intellectual Property Office,20/04/2017,Legal & Hearings,Patent Directorate,Government Legal Department,439954,675,Not Applicable
Department for Business Energy and Industrial Strategy,Intellectual Property Office,21/04/2017,Legal & Hearings,Projects,Berwin Leighton Paisner,BSUT-CCRA-37652.,1750,Not Applicable
Department for Business Energy and Industrial Strategy,Intellectual Property Office,05/04/2017,Legal & Hearings,People Places & Serv Directorate,Capital Law LLP,20038526,1830,Not Applicable
Department for Business Energy and Industrial Strategy,Intellectual Property Office,20/04/2017,Legal & Hearings,Trade Mark Directorate,Government Legal Department,440137,3395.16,Not Applicable
Department for Business Energy and Industrial Strategy,Intellectual Property Office,11/04/2017,Legal & Hearings,People Places & Serv Directorate,Anthony Collins Solicitors LLP,279467,3551.17,Not Applicable
Department for Business Energy and Industrial Strategy,Intellectual Property Office,19/04/2017,Legal & Hearings,Patent Directorate,Government Legal Department,439861,3586.13,Not Applicable
Department for Business Energy and Industrial Strategy,Intellectual Property Office,20/04/2017,Legal & Hearings,Trade Mark Directorate,Government Legal Department,439954,3672.33,Not Applicable
Department for Business Energy and Industrial Strategy,Intellectual Property Office,05/04/2017,Legal & Hearings,People Places & Serv Directorate,Capital Law LLP,20038486,6278.4,Not Applicable
Department for Business Energy and Industrial Strategy,Intellectual Property Office,20/04/2017,Legal & Hearings,Patent Directorate,Government Legal Department,439954,6892.32,Not Applicable
Department for Business Energy and Industrial Strategy,Intellectual Property Office,20/04/2017,Legal & Hearings,Trade Mark Directorate,Government Legal Department,439954,13910.75,Not Applicable
Department for Business Energy and Industrial Strategy,Intellectual Property Office,13/04/2017,Marketing & Publicity,Innovation Directorate,Full Circle Events & Exhibitions Ltd,559,-174.96,Not Applicable
Department for Business Energy and Industrial Strategy,Intellectual Property Office,19/04/2017,Marketing & Publicity,Innovation Directorate,Richard Norman Electrics Ltd,66682,84,Not Applicable
Department for Business Energy and Industrial Strategy,Intellectual Property Office,03/04/2017,Marketing & Publicity,Innovation Directorate,GES and Event Services Ltd,782817,150,Not Applicable
Department for Business Energy and Industrial Strategy,Intellectual Property Office,13/04/2017,Marketing & Publicity,Innovation Directorate,Full Circle Events & Exhibitions Ltd,20168,174.96,Not Applicable
Department for Business Energy and Industrial Strategy,Intellectual Property Office,05/04/2017,Marketing & Publicity,Innovation Directorate,Goldborough Studio Ltd,GS0220,175,Not Applicable
Department for Business Energy and Industrial Strategy,Intellectual Property Office,03/04/2017,Marketing & Publicity,Innovation Directorate,Pukka Films Ltd,PF5909,300,Not Applicable
Department for Business Energy and Industrial Strategy,Intellectual Property Office,13/04/2017,Marketing & Publicity,Innovation Directorate,Sodexo Prestige,BHA224897,318.24,Not Applicable
Department for Business Energy and Industrial Strategy,Intellectual Property Office,05/04/2017,Marketing & Publicity,Innovation Directorate,Lucky Voice Pods Ltd,LVP1112,330,Not Applicable
Department for Business Energy and Industrial Strategy,Intellectual Property Office,28/04/2017,Marketing & Publicity,Innovation Directorate,Lucky Voice Pods Ltd,LVP1127,330,Not Applicable
Department for Business Energy and Industrial Strategy,Intellectual Property Office,03/04/2017,Marketing & Publicity,Innovation Directorate,GES and Event Services Ltd,783286,428.04,Not Applicable
Department for Business Energy and Industrial Strategy,Intellectual Property Office,11/04/2017,Marketing & Publicity,Innovation Directorate,Stansted Airport Chamber of Commerce,4039,474,Not Applicable
Department for Business Energy and Industrial Strategy,Intellectual Property Office,25/04/2017,Marketing & Publicity,Innovation Directorate,Gov Delivery,9907,499,Not Applicable
Department for Business Energy and Industrial Strategy,Intellectual Property Office,11/04/2017,Marketing & Publicity,Innovation Directorate,Upper Street Events,69339,582.84,Not Applicable
Department for Business Energy and Industrial Strategy,Intellectual Property Office,26/04/2017,Marketing & Publicity,Innovation Directorate,Aardman Animations Ltd,33638,1539.6,Not Applicable
Department for Business Energy and Industrial Strategy,Intellectual Property Office,28/04/2017,Marketing & Publicity,Innovation Directorate,New Start Exhibitions Limited,NBE18125,2808,Not Applicable
Department for Business Energy and Industrial Strategy,Intellectual Property Office,26/04/2017,Minor Works-Goods,People Places & Serv Directorate,Fast Key Services Limi,H57720170428ccjfvtxnc,294.24,Not Applicable
Department for Business Energy and Industrial Strategy,Intellectual Property Office,25/04/2017,Minor Works-Goods,People Places & Serv Directorate,Www.Safetyfirstaid.Co.,H57720170427xfiprxert,60,Not Applicable
Department for Business Energy and Industrial Strategy,Intellectual Property Office,26/04/2017,Minor Works-Goods,People Places & Serv Directorate,Ikea Online,H57720170428tsmljgjqe,156.5,Not Applicable
Department for Business Energy and Industrial Strategy,Intellectual Property Office,12/04/2017,Minor Works-Goods,People Places & Serv Directorate,Screwfix Direct,H57720170414rnlwpicwo,245.76,Not Applicable
Department for Business Energy and Industrial Strategy,Intellectual Property Office,12/04/2017,Minor Works-Goods,People Places & Serv Directorate,Amazon UK Marketplace,H57720170414hflsejfol,58.74,Not Applicable
Department for Business Energy and Industrial Strategy,Intellectual Property Office,12/04/2017,Minor Works-Goods,People Places & Serv Directorate,Ikea Online,H57720170414mkkihjiuv,393,Not Applicable
Department for Business Energy and Industrial Strategy,Intellectual Property Office,12/04/2017,Minor Works-Goods,People Places & Serv Directorate,Ikea Online,H57720170414nykfjvrfy,910,Not Applicable
Department for Business Energy and Industrial Strategy,Intellectual Property Office,12/04/2017,Minor Works-Goods,People Places & Serv Directorate,Artylicious Ltd,H57720170414ylvsldrit,422,Not Applicable
Department for Business Energy and Industrial Strategy,Intellectual Property Office,08/04/2017,Minor Works-Goods,People Places & Serv Directorate,Screwfix Direct,H57720170411ssvrjegfg,425.82,Not Applicable
Department for Business Energy and Industrial Strategy,Intellectual Property Office,08/04/2017,Minor Works-Goods,People Places & Serv Directorate,W M Morrisons,H57720170411dnabtynex,22.37,Not Applicable
Department for Business Energy and Industrial Strategy,Intellectual Property Office,30/03/2017,Minor Works-Goods,People Places & Serv Directorate,Amazon UK Retail Amazon.C,H57720170404nufsccjdn,54.25,Not Applicable
Department for Business Energy and Industrial Strategy,Intellectual Property Office,30/03/2017,Minor Works-Goods,People Places & Serv Directorate,Screwfix Direct,H57720170404itkxjliqc,974.7,Not Applicable
Department for Business Energy and Industrial Strategy,Intellectual Property Office,10/04/2017,Misc Expenses Finance,Finance Directorate,Barclaycard Commercial,39646957,8.35,Not Applicable
Department for Business Energy and Industrial Strategy,Intellectual Property Office,18/04/2017,Misc Expenses Finance,Finance Directorate,G4S Cash Services (UK) Ltd,2049571,610.51,Not Applicable
Department for Business Energy and Industrial Strategy,Intellectual Property Office,28/04/2017,Misc Expenses Finance,People Places & Serv Directorate,Marsh Ltd,8828608-8238896,888.61,Not Applicable
Department for Business Energy and Industrial Strategy,Intellectual Property Office,07/04/2017,Miscellaneous Expenses General,Trade Mark Directorate,Hogarth Chambers,40641-CR,-95.58,Not Applicable
Department for Business Energy and Industrial Strategy,Intellectual Property Office,04/04/2017,Miscellaneous Expenses General,Patent Directorate,Janet Parker,ENT,4.29,Not Applicable
Department for Business Energy and Industrial Strategy,Intellectual Property Office,04/04/2017,Miscellaneous Expenses General,People Places & Serv Directorate,Karen Powell,CAKES,40.21,Not Applicable
Department for Business Energy and Industrial Strategy,Intellectual Property Office,18/04/2017,Miscellaneous Expenses General,People Places & Serv Directorate,Karen Powell,RISKAWARENESS,48.26,Not Applicable
Department for Business Energy and Industrial Strategy,Intellectual Property Office,28/04/2017,Miscellaneous Expenses General,Innovation Directorate,John Clark,MC07MAR17,82.8,Not Applicable
Department for Business Energy and Industrial Strategy,Intellectual Property Office,20/04/2017,Miscellaneous Expenses General,Innovation Directorate,Pippa Hall,LUNCH,119.02,Not Applicable
Department for Business Energy and Industrial Strategy,Intellectual Property Office,06/04/2017,Miscellaneous Expenses General,People Places & Serv Directorate,TV Licensing,1389106453,147,Not Applicable
Department for Business Energy and Industrial Strategy,Intellectual Property Office,13/04/2017,Miscellaneous Expenses General,People Places & Serv Directorate,OH Assist Limited,INV0011449,238.6,Not Applicable
Department for Business Energy and Industrial Strategy,Intellectual Property Office,28/04/2017,Miscellaneous Expenses General,People Places & Serv Directorate,G Austin,SB270417,310.53,Not Applicable
Department for Business Energy and Industrial Strategy,Intellectual Property Office,03/04/2017,Miscellaneous Expenses General,People Places & Serv Directorate,POSSA,POSSA XMAS,354.79,Not Applicable
Department for Business Energy and Industrial Strategy,Intellectual Property Office,13/04/2017,Miscellaneous Expenses General,Innovation Directorate,Veezu Ltd T/A Dragon Taxis (Newport),2564,374.4,Not Applicable
Department for Business Energy and Industrial Strategy,Intellectual Property Office,26/04/2017,Miscellaneous Expenses General,People Places & Serv Directorate,Cratemate,5496W,394.8,Not Applicable
Department for Business Energy and Industrial Strategy,Intellectual Property Office,25/04/2017,Miscellaneous Expenses General,Finance Directorate,Eversheds Sutherland (International) LLP,91581255,451.8,Not Applicable
Department for Business Energy and Industrial Strategy,Intellectual Property Office,18/04/2017,Miscellaneous Expenses General,People Places & Serv Directorate,Newhousemotors2011 LTD,2769,479.3,Not Applicable
Department for Business Energy and Industrial Strategy,Intellectual Property Office,06/04/2017,Miscellaneous Expenses General,Patent Directorate,British Standards Institution,400546953,480,Not Applicable
Department for Business Energy and Industrial Strategy,Intellectual Property Office,10/04/2017,Miscellaneous Expenses General,IT Directorate,British Standards Institution,400546951,766.8,Not Applicable
Department for Business Energy and Industrial Strategy,Intellectual Property Office,12/04/2017,Miscellaneous Expenses General,People Places & Serv Directorate,RM Gilbert,SB120417,784.95,Not Applicable
Department for Business Energy and Industrial Strategy,Intellectual Property Office,06/04/2017,Miscellaneous Expenses General,Trade Mark Directorate,FCO Services,6060370,1050,Not Applicable
Department for Business Energy and Industrial Strategy,Intellectual Property Office,11/04/2017,Miscellaneous Expenses General,International Policy Directorate,Northwood Reid,1565,1500,Not Applicable
Department for Business Energy and Industrial Strategy,Intellectual Property Office,24/04/2017,Miscellaneous Expenses General,Projects,Omnis Systems Ltd,2017-158,2094,Not Applicable
Department for Business Energy and Industrial Strategy,Intellectual Property Office,13/04/2017,Miscellaneous Expenses General,Projects,Robin Jacob,13APR17-UPC,2311.11,Not Applicable
Department for Business Energy and Industrial Strategy,Intellectual Property Office,07/04/2017,Miscellaneous Expenses General,Innovation Directorate,Holiday Inn,2017006238,2546,Not Applicable
Department for Business Energy and Industrial Strategy,Intellectual Property Office,21/04/2017,Miscellaneous Expenses General,People Places & Serv Directorate,Creative Confidence Consulting Ltd,INV-0004,4245,Not Applicable
Department for Business Energy and Industrial Strategy,Intellectual Property Office,20/04/2017,Miscellaneous Expenses General,Innovation Directorate,YouGov,158543,10530,Not Applicable
Department for Business Energy and Industrial Strategy,Intellectual Property Office,21/04/2017,Miscellaneous Expenses General,Innovation Directorate,University of Hertfordshire,113120,20569.2,Not Applicable
Department for Business Energy and Industrial Strategy,Intellectual Property Office,02/04/2017,Network and infrastructure H/W,People Places & Serv Directorate,Amazon UK Marketplace,H57720170404ylksfnclt,229.89,Not Applicable
Department for Business Energy and Industrial Strategy,Intellectual Property Office,03/04/2017,Network and infrastructure H/W,People Places & Serv Directorate,Tesco Store 2931,H57720170405xnyngciur,26.43,Not Applicable
Department for Business Energy and Industrial Strategy,Intellectual Property Office,26/04/2017,Network and infrastructure H/W,IT Directorate,Argos Retail Group,H57720170428criswfbmz,99,Not Applicable
Department for Business Energy and Industrial Strategy,Intellectual Property Office,22/04/2017,Network and infrastructure H/W,IT Directorate,Amazon UK Marketplace,H57720170425kcqetxbdn,14.98,Not Applicable
Department for Business Energy and Industrial Strategy,Intellectual Property Office,21/04/2017,Network and infrastructure H/W,IT Directorate,Dashenginternationaltr,H57720170425yirfjwhgy,439.27,Not Applicable
Department for Business Energy and Industrial Strategy,Intellectual Property Office,19/04/2017,Network and infrastructure H/W,IT Directorate,Amazon UK Retail,H57720170421ixjkpudqu,11.99,Not Applicable
Department for Business Energy and Industrial Strategy,Intellectual Property Office,19/04/2017,Network and infrastructure H/W,IT Directorate,Argos Ltd,H57720170421ffiibojaf,99,Not Applicable
Department for Business Energy and Industrial Strategy,Intellectual Property Office,15/04/2017,Network and infrastructure H/W,IT Directorate,Apple Online Store Gbp,H57720170418bneylxqtg,248,Not Applicable
Department for Business Energy and Industrial Strategy,Intellectual Property Office,14/04/2017,Network and infrastructure H/W,IT Directorate,Apple Online Store Gbp,H57720170418cpceptnoq,719,Not Applicable
Department for Business Energy and Industrial Strategy,Intellectual Property Office,15/04/2017,Network and infrastructure H/W,IT Directorate,Apple Online Store Gbp,H57720170418flsipnsql,669,Not Applicable
Department for Business Energy and Industrial Strategy,Intellectual Property Office,11/04/2017,Network and infrastructure H/W,IT Directorate,Amazon UK Retail Amazon.C,H57720170413jcyohxjyk,199.98,Not Applicable
Department for Business Energy and Industrial Strategy,Intellectual Property Office,10/04/2017,Network and infrastructure H/W,IT Directorate,Amazon UK Retail,H57720170412negdtcstf,12.59,Not Applicable
Department for Business Energy and Industrial Strategy,Intellectual Property Office,24/04/2017,Network and infrastructure H/W,Finance Directorate,Swiftcover,H57720170426ovanyeaaz,-3.39,Not Applicable
Department for Business Energy and Industrial Strategy,Intellectual Property Office,08/04/2017,Network and infrastructure H/W,Finance Directorate,Psd Fraud Temp. Credit,H57720170426jjkjkxlmd,-172.73,Not Applicable
Department for Business Energy and Industrial Strategy,Intellectual Property Office,08/04/2017,Network and infrastructure H/W,Finance Directorate,Psd Fraud Temp. Credit,H57720170426zdwpgqrjr,-124.35,Not Applicable
Department for Business Energy and Industrial Strategy,Intellectual Property Office,08/04/2017,Network and infrastructure H/W,Finance Directorate,Psd Fraud Temp. Credit,H57720170426ukwdtgzcb,-128.06,Not Applicable
Department for Business Energy and Industrial Strategy,Intellectual Property Office,10/04/2017,Network and infrastructure H/W,IT Directorate,One Stop Pc Shop,H57720170412wjphokryh,42.71,Not Applicable
Department for Business Energy and Industrial Strategy,Intellectual Property Office,08/04/2017,Network and infrastructure H/W,IT Directorate,Amazon Prime,H57720170411xmwusmgit,7.99,Not Applicable
Department for Business Energy and Industrial Strategy,Intellectual Property Office,12/04/2017,Network and infrastructure H/W,IT Directorate,Amazon UK Marketplace,H57720170414dodflqglb,54.4,Not Applicable
Department for Business Energy and Industrial Strategy,Intellectual Property Office,11/04/2017,Network and infrastructure H/W,IT Directorate,Www.Modmypi.Com,H57720170413vdfgsfien,53.48,Not Applicable
Department for Business Energy and Industrial Strategy,Intellectual Property Office,28/04/2017,Office Machinery,People Places & Serv Directorate,Total Print Finishing Services Ltd,39213,156,Not Applicable
Department for Business Energy and Industrial Strategy,Intellectual Property Office,28/04/2017,Office Machinery,People Places & Serv Directorate,Total Print Finishing Services Ltd,39215,312,Not Applicable
Department for Business Energy and Industrial Strategy,Intellectual Property Office,28/04/2017,Office Machinery,People Places & Serv Directorate,Xerox (UK) Ltd,1606771510,2499.6,Not Applicable
Department for Business Energy and Industrial Strategy,Intellectual Property Office,06/04/2017,Office Machinery,People Places & Serv Directorate,Xerox (UK) Ltd,1606714301,2787.44,Not Applicable
Department for Business Energy and Industrial Strategy,Intellectual Property Office,28/04/2017,Office Machinery,People Places & Serv Directorate,Xerox (UK) Ltd,1606764611,7076.53,Not Applicable
Department for Business Energy and Industrial Strategy,Intellectual Property Office,28/04/2017,Office Machinery,People Places & Serv Directorate,Xerox (UK) Ltd,1606764612,8345.42,Not Applicable
Department for Business Energy and Industrial Strategy,Intellectual Property Office,19/04/2017,Office Machinery,People Places & Serv Directorate,Konica Minolta Business Solutions (UK),1129678297,9866.38,Not Applicable
Department for Business Energy and Industrial Strategy,Intellectual Property Office,19/04/2017,Office Stationery,Finance Directorate,Xma Ltd,H57720170421enkuhqlbj,145.99,Not Applicable
Department for Business Energy and Industrial Strategy,Intellectual Property Office,18/04/2017,Office Stationery,Finance Directorate,Xma Ltd,H57720170420hcymlpukd,161.24,Not Applicable
Department for Business Energy and Industrial Strategy,Intellectual Property Office,18/04/2017,Office Stationery,Finance Directorate,Xma Ltd,H57720170420vybiwujuf,272.42,Not Applicable
Department for Business Energy and Industrial Strategy,Intellectual Property Office,18/04/2017,Office Stationery,Finance Directorate,Xma Ltd,H57720170420ypuznnfqu,319.92,Not Applicable
Department for Business Energy and Industrial Strategy,Intellectual Property Office,10/04/2017,Office Stationery,Finance Directorate,Xma Ltd,H57720170412tlwhogigm,41.36,Not Applicable
Department for Business Energy and Industrial Strategy,Intellectual Property Office,04/04/2017,Office Stationery,Finance Directorate,Xma Ltd,H57720170406cjvbqhwhf,209.63,Not Applicable
Department for Business Energy and Industrial Strategy,Intellectual Property Office,04/04/2017,Office Stationery,Finance Directorate,Xma Ltd,H57720170406jrehmnecn,72.46,Not Applicable
Department for Business Energy and Industrial Strategy,Intellectual Property Office,09/04/2017,Office Stationery,Finance Directorate,Www.Rajapack.Co.Uk,H57720170411ijijpceyy,147.59,Not Applicable
Department for Business Energy and Industrial Strategy,Intellectual Property Office,04/04/2017,Office Stationery,Finance Directorate,Paypal,H57720170406wvrfsbgsf,252.15,Not Applicable
Department for Business Energy and Industrial Strategy,Intellectual Property Office,30/03/2017,Office Stationery,People Places & Serv Directorate,Calumet Distribution,H57720170404ysjpgdpmz,2400,Not Applicable
Department for Business Energy and Industrial Strategy,Intellectual Property Office,21/04/2017,Office Stationery,People Places & Serv Directorate,Dad,H57720170425jeqcvlhhj,424.76,Not Applicable
Department for Business Energy and Industrial Strategy,Intellectual Property Office,21/04/2017,Office Stationery,People Places & Serv Directorate,Dad,H57720170425ybykysckd,566.35,Not Applicable
Department for Business Energy and Industrial Strategy,Intellectual Property Office,30/03/2017,Office Stationery,People Places & Serv Directorate,Amazon UK Retail Amazon.C,H57720170404uvyxesmcl,109.99,Not Applicable
Department for Business Energy and Industrial Strategy,Intellectual Property Office,01/04/2017,Office Stationery,People Places & Serv Directorate,Jessops Europe Ltd,H57720170404btslhwper,25,Not Applicable
Department for Business Energy and Industrial Strategy,Intellectual Property Office,24/04/2017,Office Stationery,People Places & Serv Directorate,Screwfix Direct,H57720170426cketobtfo,143.93,Not Applicable
Department for Business Energy and Industrial Strategy,Intellectual Property Office,12/04/2017,Office Stationery,People Places & Serv Directorate,Timpson Ltd,H57720170414ritmclwyh,6,Not Applicable
Department for Business Energy and Industrial Strategy,Intellectual Property Office,27/04/2017,Office Stationery,People Places & Serv Directorate,Amazon UK Retail Amazon.C,H57720170429elgklsonu,24.99,Not Applicable
Department for Business Energy and Industrial Strategy,Intellectual Property Office,27/04/2017,Office Stationery,People Places & Serv Directorate,Amazon UK Marketplace,H57720170429nxwnlxvgh,15.99,Not Applicable
Department for Business Energy and Industrial Strategy,Intellectual Property Office,27/04/2017,Office Stationery,People Places & Serv Directorate,Amazon UK Marketplace,H57720170429pphgnrimk,8.57,Not Applicable
Department for Business Energy and Industrial Strategy,Intellectual Property Office,20/04/2017,Office Stationery,People Places & Serv Directorate,Screwfix Direct,H57720170422msmramnkq,283.48,Not Applicable
Department for Business Energy and Industrial Strategy,Intellectual Property Office,20/04/2017,Office Stationery,People Places & Serv Directorate,Screwfix Direct,H57720170422omkfmtqgt,434.99,Not Applicable
Department for Business Energy and Industrial Strategy,Intellectual Property Office,07/04/2017,Office Stationery,People Places & Serv Directorate,Amazon UK Marketplace,H57720170411flzgqutit,322.89,Not Applicable
Department for Business Energy and Industrial Strategy,Intellectual Property Office,30/03/2017,Office Stationery,People Places & Serv Directorate,Screwfix Direct,H57720170404qanrlfwdp,484.96,Not Applicable
Department for Business Energy and Industrial Strategy,Intellectual Property Office,24/04/2017,Office Stationery,People Places & Serv Directorate,Screwfix Direct,H57720170426pqfdiccdi,249.95,Not Applicable
Department for Business Energy and Industrial Strategy,Intellectual Property Office,21/04/2017,Office Stationery,People Places & Serv Directorate,Amazon UK Retail Amazon.C,H57720170425bxlhvnyqg,26.2,Not Applicable
Department for Business Energy and Industrial Strategy,Intellectual Property Office,21/04/2017,Office Stationery,People Places & Serv Directorate,Healthy Workstations Ltd,H57720170425gsxccyrvq,32.28,Not Applicable
Department for Business Energy and Industrial Strategy,Intellectual Property Office,19/04/2017,Office Stationery,People Places & Serv Directorate,The Colour Centre,H57720170421luisrpfmd,628.8,Not Applicable
Department for Business Energy and Industrial Strategy,Intellectual Property Office,13/04/2017,Office Stationery,People Places & Serv Directorate,Amazon UK Marketplace,H57720170415hnlefbfkm,5.2,Not Applicable
Department for Business Energy and Industrial Strategy,Intellectual Property Office,12/04/2017,Office Stationery,People Places & Serv Directorate,Amazon UK Marketplace,H57720170414jhxxoqgfz,21.24,Not Applicable
Department for Business Energy and Industrial Strategy,Intellectual Property Office,25/04/2017,Office Stationery,People Places & Serv Directorate,Www.Slingsby.Com,H57720170427zolrprpgb,669.6,Not Applicable
Department for Business Energy and Industrial Strategy,Intellectual Property Office,31/03/2017,Office Stationery,People Places & Serv Directorate,South Wales Suppliers,H57720170404rshrevgfu,476.4,Not Applicable
Department for Business Energy and Industrial Strategy,Intellectual Property Office,26/04/2017,Office Supplies,Finance Directorate,STAMPS DIRECT LTD,CRE301849,-46.5,Not Applicable
Department for Business Energy and Industrial Strategy,Intellectual Property Office,19/04/2017,Office Supplies,Finance Directorate,Antalis,945124,-0.25,Not Applicable
Department for Business Energy and Industrial Strategy,Intellectual Property Office,12/04/2017,Office Supplies,Patent Directorate,Stationery Office,26531232,5.94,Not Applicable
Department for Business Energy and Industrial Strategy,Intellectual Property Office,20/04/2017,Office Supplies,Finance Directorate,Midshire Business Systems (Northern) Ltd,S334862,9,Not Applicable
Department for Business Energy and Industrial Strategy,Intellectual Property Office,28/04/2017,Office Supplies,Finance Directorate,STAMPS DIRECT LTD,CA344991,22.1,Not Applicable
Department for Business Energy and Industrial Strategy,Intellectual Property Office,26/04/2017,Office Supplies,Finance Directorate,STAMPS DIRECT LTD,CA344923,59.99,Not Applicable
Department for Business Energy and Industrial Strategy,Intellectual Property Office,28/04/2017,Office Supplies,Finance Directorate,Antalis,6772115,139.44,Not Applicable
Department for Business Energy and Industrial Strategy,Intellectual Property Office,10/04/2017,Office Supplies,Patent Directorate,British Library,139784852,234.3,Not Applicable
Department for Business Energy and Industrial Strategy,Intellectual Property Office,28/04/2017,Office Supplies,Finance Directorate,Total Print Finishing Services Ltd,39238,237.1,Not Applicable
Department for Business Energy and Industrial Strategy,Intellectual Property Office,06/04/2017,Office Supplies,People Places & Serv Directorate,Menzies Distribution Ltd t/a Jones Yarre,274297,274.78,Not Applicable
Department for Business Energy and Industrial Strategy,Intellectual Property Office,28/04/2017,Office Supplies,Finance Directorate,South East Drawing Office Ltd,11737,311.4,Not Applicable
Department for Business Energy and Industrial Strategy,Intellectual Property Office,04/04/2017,Office Supplies,Trade Mark Directorate,Thomson Reuters,802070808,360,Not Applicable
Department for Business Energy and Industrial Strategy,Intellectual Property Office,03/04/2017,Office Supplies,Finance Directorate,Antalis,6706237,390.96,Not Applicable
Department for Business Energy and Industrial Strategy,Intellectual Property Office,03/04/2017,Office Supplies,Finance Directorate,Antalis,6698043,666.66,Not Applicable
Department for Business Energy and Industrial Strategy,Intellectual Property Office,19/04/2017,Office Supplies,Finance Directorate,Antalis,6725348,666.66,Not Applicable
Department for Business Energy and Industrial Strategy,Intellectual Property Office,24/04/2017,Office Supplies,Finance Directorate,Antalis,6749157,666.66,Not Applicable
Department for Business Energy and Industrial Strategy,Intellectual Property Office,28/04/2017,Office Supplies,Finance Directorate,Antalis,6768254,666.66,Not Applicable
Department for Business Energy and Industrial Strategy,Intellectual Property Office,06/04/2017,Office Supplies,Finance Directorate,Banner Group Limited,33063781,994.04,Not Applicable
Department for Business Energy and Industrial Strategy,Intellectual Property Office,06/04/2017,Office Supplies,Finance Directorate,Antalis,6724357,3066.71,Not Applicable
Department for Business Energy and Industrial Strategy,Intellectual Property Office,07/04/2017,Office Supplies,Patent Directorate,British Library,139784382,3401.86,Not Applicable
Department for Business Energy and Industrial Strategy,Intellectual Property Office,25/04/2017,Overseas Patent Specifications,Patent Directorate,Onepetro.Org,H57720170427khbsupwti,20,Not Applicable
Department for Business Energy and Industrial Strategy,Intellectual Property Office,25/04/2017,Overseas Patent Specifications,Patent Directorate,Aps Journals,H57720170427pvxukddme,20.15,Not Applicable
Department for Business Energy and Industrial Strategy,Intellectual Property Office,13/04/2017,Overseas Patent Specifications,Patent Directorate,Sage Publications,H57720170415peorhesdk,39.55,Not Applicable
Department for Business Energy and Industrial Strategy,Intellectual Property Office,24/04/2017,Pay Costs,Finance Directorate,Brook Street (UK) Ltd,30370131,-664.06,Not Applicable
Department for Business Energy and Industrial Strategy,Intellectual Property Office,24/04/2017,Pay Costs,Patent Directorate,Brook Street (UK) Ltd,30360232,121.14,Not Applicable
Department for Business Energy and Industrial Strategy,Intellectual Property Office,26/04/2017,Pay Costs,Trade Mark Directorate,Brook Street (UK) Ltd,30337561,229.9,Not Applicable
Department for Business Energy and Industrial Strategy,Intellectual Property Office,24/04/2017,Pay Costs,Finance Directorate,Brook Street (UK) Ltd,30360232,244.44,Not Applicable
Department for Business Energy and Industrial Strategy,Intellectual Property Office,24/04/2017,Pay Costs,Finance Directorate,Brook Street (UK) Ltd,30360232,260.74,Not Applicable
Department for Business Energy and Industrial Strategy,Intellectual Property Office,24/04/2017,Pay Costs,Patent Directorate,Brook Street (UK) Ltd,30360232,293.6,Not Applicable
Department for Business Energy and Industrial Strategy,Intellectual Property Office,24/04/2017,Pay Costs,Finance Directorate,Brook Street (UK) Ltd,30360232,331.12,Not Applicable
Department for Business Energy and Industrial Strategy,Intellectual Property Office,24/04/2017,Pay Costs,Finance Directorate,Brook Street (UK) Ltd,30348695,359.38,Not Applicable
Department for Business Energy and Industrial Strategy,Intellectual Property Office,26/04/2017,Pay Costs,Patent Directorate,Brook Street (UK) Ltd,30337561,370.49,Not Applicable
Department for Business Energy and Industrial Strategy,Intellectual Property Office,24/04/2017,Pay Costs,Patent Directorate,Brook Street (UK) Ltd,30360232,393.34,Not Applicable
Department for Business Energy and Industrial Strategy,Intellectual Property Office,24/04/2017,Pay Costs,Patent Directorate,Brook Street (UK) Ltd,30348695,396.96,Not Applicable
Department for Business Energy and Industrial Strategy,Intellectual Property Office,24/04/2017,Pay Costs,Patent Directorate,Brook Street (UK) Ltd,30348695,396.96,Not Applicable
Department for Business Energy and Industrial Strategy,Intellectual Property Office,24/04/2017,Pay Costs,People Places & Serv Directorate,Brook Street (UK) Ltd,30360232,396.96,Not Applicable
Department for Business Energy and Industrial Strategy,Intellectual Property Office,24/04/2017,Pay Costs,People Places & Serv Directorate,Brook Street (UK) Ltd,30360232,400.62,Not Applicable
Department for Business Energy and Industrial Strategy,Intellectual Property Office,26/04/2017,Pay Costs,Patent Directorate,Brook Street (UK) Ltd,30337561,407.88,Not Applicable
Department for Business Energy and Industrial Strategy,Intellectual Property Office,24/04/2017,Pay Costs,Patent Directorate,Brook Street (UK) Ltd,30348695,409.68,Not Applicable
Department for Business Energy and Industrial Strategy,Intellectual Property Office,24/04/2017,Pay Costs,Patent Directorate,Brook Street (UK) Ltd,30360232,409.68,Not Applicable
Department for Business Energy and Industrial Strategy,Intellectual Property Office,24/04/2017,Pay Costs,Innovation Directorate,Brook Street (UK) Ltd,30360232,411.22,Not Applicable
Department for Business Energy and Industrial Strategy,Intellectual Property Office,24/04/2017,Pay Costs,Patent Directorate,Brook Street (UK) Ltd,30360232,420.54,Not Applicable
Department for Business Energy and Industrial Strategy,Intellectual Property Office,24/04/2017,Pay Costs,Patent Directorate,Brook Street (UK) Ltd,30360232,422.64,Not Applicable
Department for Business Energy and Industrial Strategy,Intellectual Property Office,24/04/2017,Pay Costs,Patent Directorate,Brook Street (UK) Ltd,30360232,422.64,Not Applicable
Department for Business Energy and Industrial Strategy,Intellectual Property Office,24/04/2017,Pay Costs,Patent Directorate,Brook Street (UK) Ltd,30360232,424.08,Not Applicable
Department for Business Energy and Industrial Strategy,Intellectual Property Office,26/04/2017,Pay Costs,Patent Directorate,Brook Street (UK) Ltd,30337561,428.34,Not Applicable
Department for Business Energy and Industrial Strategy,Intellectual Property Office,26/04/2017,Pay Costs,Patent Directorate,Brook Street (UK) Ltd,30337561,430.25,Not Applicable
Department for Business Energy and Industrial Strategy,Intellectual Property Office,24/04/2017,Pay Costs,Patent Directorate,Brook Street (UK) Ltd,30360232,433.44,Not Applicable
Department for Business Energy and Industrial Strategy,Intellectual Property Office,24/04/2017,Pay Costs,Patent Directorate,Brook Street (UK) Ltd,30360232,437.04,Not Applicable
Department for Business Energy and Industrial Strategy,Intellectual Property Office,24/04/2017,Pay Costs,Patent Directorate,Brook Street (UK) Ltd,30360232,437.04,Not Applicable
Department for Business Energy and Industrial Strategy,Intellectual Property Office,24/04/2017,Pay Costs,Patent Directorate,Brook Street (UK) Ltd,30360232,437.04,Not Applicable
Department for Business Energy and Industrial Strategy,Intellectual Property Office,24/04/2017,Pay Costs,Patent Directorate,Brook Street (UK) Ltd,30360232,446.35,Not Applicable
Department for Business Energy and Industrial Strategy,Intellectual Property Office,24/04/2017,Pay Costs,Innovation Directorate,Brook Street (UK) Ltd,30360232,456.29,Not Applicable
Department for Business Energy and Industrial Strategy,Intellectual Property Office,26/04/2017,Pay Costs,Innovation Directorate,Brook Street (UK) Ltd,30337561,464.8,Not Applicable
Department for Business Energy and Industrial Strategy,Intellectual Property Office,24/04/2017,Pay Costs,Innovation Directorate,Brook Street (UK) Ltd,30360232,474.48,Not Applicable
Department for Business Energy and Industrial Strategy,Intellectual Property Office,24/04/2017,Pay Costs,Innovation Directorate,Brook Street (UK) Ltd,30360232,474.48,Not Applicable
Department for Business Energy and Industrial Strategy,Intellectual Property Office,24/04/2017,Pay Costs,Patent Directorate,Brook Street (UK) Ltd,30348695,477.96,Not Applicable
Department for Business Energy and Industrial Strategy,Intellectual Property Office,26/04/2017,Pay Costs,Patent Directorate,Brook Street (UK) Ltd,30337561,478.96,Not Applicable
Department for Business Energy and Industrial Strategy,Intellectual Property Office,24/04/2017,Pay Costs,Finance Directorate,Brook Street (UK) Ltd,30348695,480.73,Not Applicable
Department for Business Energy and Industrial Strategy,Intellectual Property Office,24/04/2017,Pay Costs,Finance Directorate,Brook Street (UK) Ltd,30360232,480.73,Not Applicable
Department for Business Energy and Industrial Strategy,Intellectual Property Office,24/04/2017,Pay Costs,Finance Directorate,Brook Street (UK) Ltd,30360232,480.73,Not Applicable
Department for Business Energy and Industrial Strategy,Intellectual Property Office,24/04/2017,Pay Costs,Finance Directorate,Brook Street (UK) Ltd,30360232,480.73,Not Applicable
Department for Business Energy and Industrial Strategy,Intellectual Property Office,26/04/2017,Pay Costs,Patent Directorate,Brook Street (UK) Ltd,30337561,482.76,Not Applicable
Department for Business Energy and Industrial Strategy,Intellectual Property Office,24/04/2017,Pay Costs,Patent Directorate,Brook Street (UK) Ltd,30360232,482.76,Not Applicable
Department for Business Energy and Industrial Strategy,Intellectual Property Office,24/04/2017,Pay Costs,Trade Mark Directorate,Brook Street (UK) Ltd,30360232,483.79,Not Applicable
Department for Business Energy and Industrial Strategy,Intellectual Property Office,24/04/2017,Pay Costs,Finance Directorate,Brook Street (UK) Ltd,30360232,488.88,Not Applicable
Department for Business Energy and Industrial Strategy,Intellectual Property Office,26/04/2017,Pay Costs,Patent Directorate,Brook Street (UK) Ltd,30337561,509.84,Not Applicable
Department for Business Energy and Industrial Strategy,Intellectual Property Office,24/04/2017,Pay Costs,Patent Directorate,Brook Street (UK) Ltd,30348695,512.1,Not Applicable
Department for Business Energy and Industrial Strategy,Intellectual Property Office,24/04/2017,Pay Costs,Patent Directorate,Brook Street (UK) Ltd,30348695,523.03,Not Applicable
Department for Business Energy and Industrial Strategy,Intellectual Property Office,26/04/2017,Pay Costs,Trade Mark Directorate,Brook Street (UK) Ltd,30337561,524.77,Not Applicable
Department for Business Energy and Industrial Strategy,Intellectual Property Office,26/04/2017,Pay Costs,Patent Directorate,Brook Street (UK) Ltd,30337561,528.3,Not Applicable
Department for Business Energy and Industrial Strategy,Intellectual Property Office,24/04/2017,Pay Costs,Patent Directorate,Brook Street (UK) Ltd,30348695,530.1,Not Applicable
Department for Business Energy and Industrial Strategy,Intellectual Property Office,26/04/2017,Pay Costs,Patent Directorate,Brook Street (UK) Ltd,30337561,532.8,Not Applicable
Department for Business Energy and Industrial Strategy,Intellectual Property Office,24/04/2017,Pay Costs,Patent Directorate,Brook Street (UK) Ltd,30348695,534.58,Not Applicable
Department for Business Energy and Industrial Strategy,Intellectual Property Office,26/04/2017,Pay Costs,Patent Directorate,Brook Street (UK) Ltd,30337561,537.24,Not Applicable
Department for Business Energy and Industrial Strategy,Intellectual Property Office,26/04/2017,Pay Costs,Patent Directorate,Brook Street (UK) Ltd,30337561,537.24,Not Applicable
Department for Business Energy and Industrial Strategy,Intellectual Property Office,24/04/2017,Pay Costs,Patent Directorate,Brook Street (UK) Ltd,30348695,539.02,Not Applicable
Department for Business Energy and Industrial Strategy,Intellectual Property Office,24/04/2017,Pay Costs,Patent Directorate,Brook Street (UK) Ltd,30348695,539.02,Not Applicable
Department for Business Energy and Industrial Strategy,Intellectual Property Office,24/04/2017,Pay Costs,Patent Directorate,Brook Street (UK) Ltd,30348695,539.02,Not Applicable
Department for Business Energy and Industrial Strategy,Intellectual Property Office,24/04/2017,Pay Costs,People Places & Serv Directorate,Brook Street (UK) Ltd,30348695,539.02,Not Applicable
Department for Business Energy and Industrial Strategy,Intellectual Property Office,26/04/2017,Pay Costs,People Places & Serv Directorate,Brook Street (UK) Ltd,30337561,539.29,Not Applicable
Department for Business Energy and Industrial Strategy,Intellectual Property Office,26/04/2017,Pay Costs,Patent Directorate,Brook Street (UK) Ltd,30337561,542.11,Not Applicable
Department for Business Energy and Industrial Strategy,Intellectual Property Office,26/04/2017,Pay Costs,Patent Directorate,Brook Street (UK) Ltd,30337561,544.5,Not Applicable
Department for Business Energy and Industrial Strategy,Intellectual Property Office,24/04/2017,Pay Costs,Patent Directorate,Brook Street (UK) Ltd,30348695,546.3,Not Applicable
Department for Business Energy and Industrial Strategy,Intellectual Property Office,24/04/2017,Pay Costs,Patent Directorate,Brook Street (UK) Ltd,30348695,546.3,Not Applicable
Department for Business Energy and Industrial Strategy,Intellectual Property Office,24/04/2017,Pay Costs,Innovation Directorate,Brook Street (UK) Ltd,30348695,565.32,Not Applicable
Department for Business Energy and Industrial Strategy,Intellectual Property Office,24/04/2017,Pay Costs,Innovation Directorate,Brook Street (UK) Ltd,30360232,582.58,Not Applicable
Department for Business Energy and Industrial Strategy,Intellectual Property Office,26/04/2017,Pay Costs,Innovation Directorate,Brook Street (UK) Ltd,30337561,582.97,Not Applicable
Department for Business Energy and Industrial Strategy,Intellectual Property Office,24/04/2017,Pay Costs,Trade Mark Directorate,Brook Street (UK) Ltd,30348695,585.19,Not Applicable
Department for Business Energy and Industrial Strategy,Intellectual Property Office,24/04/2017,Pay Costs,Innovation Directorate,Brook Street (UK) Ltd,30348695,585.19,Not Applicable
Department for Business Energy and Industrial Strategy,Intellectual Property Office,24/04/2017,Pay Costs,Innovation Directorate,Brook Street (UK) Ltd,30348695,585.19,Not Applicable
Department for Business Energy and Industrial Strategy,Intellectual Property Office,24/04/2017,Pay Costs,Innovation Directorate,Brook Street (UK) Ltd,30348695,594.5,Not Applicable
Department for Business Energy and Industrial Strategy,Intellectual Property Office,24/04/2017,Pay Costs,Patent Directorate,Brook Street (UK) Ltd,30348695,595.4,Not Applicable
Department for Business Energy and Industrial Strategy,Intellectual Property Office,24/04/2017,Pay Costs,Innovation Directorate,Brook Street (UK) Ltd,30348695,597.62,Not Applicable
Department for Business Energy and Industrial Strategy,Intellectual Property Office,26/04/2017,Pay Costs,Patent Directorate,Brook Street (UK) Ltd,30337561,599.42,Not Applicable
Department for Business Energy and Industrial Strategy,Intellectual Property Office,24/04/2017,Pay Costs,Patent Directorate,Brook Street (UK) Ltd,30348695,599.59,Not Applicable
Department for Business Energy and Industrial Strategy,Intellectual Property Office,26/04/2017,Pay Costs,Patent Directorate,Brook Street (UK) Ltd,30337561,634.72,Not Applicable
Department for Business Energy and Industrial Strategy,Intellectual Property Office,24/04/2017,Pay Costs,Finance Directorate,Brook Street (UK) Ltd,30348695,664.06,Not Applicable
Department for Business Energy and Industrial Strategy,Intellectual Property Office,26/04/2017,Pay Costs,Innovation Directorate,Brook Street (UK) Ltd,30337561,670.82,Not Applicable
Department for Business Energy and Industrial Strategy,Intellectual Property Office,26/04/2017,Pay Costs,Innovation Directorate,Brook Street (UK) Ltd,30337561,670.82,Not Applicable
Department for Business Energy and Industrial Strategy,Intellectual Property Office,26/04/2017,Pay Costs,Innovation Directorate,Brook Street (UK) Ltd,30337561,670.82,Not Applicable
Department for Business Energy and Industrial Strategy,Intellectual Property Office,24/04/2017,Pay Costs,Finance Directorate,Brook Street (UK) Ltd,30348695,710.66,Not Applicable
Department for Business Energy and Industrial Strategy,Intellectual Property Office,24/04/2017,Pay Costs,Patent Directorate,Brook Street (UK) Ltd,30360232,787.46,Not Applicable
Department for Business Energy and Industrial Strategy,Intellectual Property Office,24/04/2017,Pay Costs,Finance Directorate,Brook Street (UK) Ltd,30348695,894.13,Not Applicable
Department for Business Energy and Industrial Strategy,Intellectual Property Office,26/04/2017,Pay Costs,Patent Directorate,Brook Street (UK) Ltd,30337561,1087.81,Not Applicable
Department for Business Energy and Industrial Strategy,Intellectual Property Office,24/04/2017,Pay Costs,Patent Directorate,Brook Street (UK) Ltd,30348695,1137.2,Not Applicable
Department for Business Energy and Industrial Strategy,Intellectual Property Office,26/04/2017,Pay Costs,Patent Directorate,Brook Street (UK) Ltd,30337561,1174.72,Not Applicable
Department for Business Energy and Industrial Strategy,Intellectual Property Office,26/04/2017,Pay Costs,Patent Directorate,Brook Street (UK) Ltd,30337561,1452.45,Not Applicable
Department for Business Energy and Industrial Strategy,Intellectual Property Office,28/04/2017,Pay Costs,Copyright and Enforcement Directorate,Police & Crime Commissioner Sussex,1800039774,2759.6,Not Applicable
Department for Business Energy and Industrial Strategy,Intellectual Property Office,28/04/2017,Pay Costs,Copyright and Enforcement Directorate,Home  Office,1137038,7406.28,Not Applicable
Department for Business Energy and Industrial Strategy,Intellectual Property Office,24/04/2017,Perpetual Licences,IT Directorate,Adobe Ps Creative Cld,H57720170426mhhsupnwu,728.06,Not Applicable
Department for Business Energy and Industrial Strategy,Intellectual Property Office,13/04/2017,Perpetual Licences,IT Directorate,Www.Monitis.Com,H57720170418qtvmhoowu,-295.15,Not Applicable
Department for Business Energy and Industrial Strategy,Intellectual Property Office,08/04/2017,Perpetual Licences,IT Directorate,Www.Monitis.Com,H57720170411fpkerekqb,318.77,Not Applicable
Department for Business Energy and Industrial Strategy,Intellectual Property Office,07/04/2017,Perpetual Licences,IT Directorate,Www.Monitis.Com,H57720170411givqufxvg,38.41,Not Applicable
Department for Business Energy and Industrial Strategy,Intellectual Property Office,05/04/2017,Perpetual Licences,IT Directorate,Websitepulse.Com,H57720170408emjesgrlb,78.89,Not Applicable
Department for Business Energy and Industrial Strategy,Intellectual Property Office,12/04/2017,Perpetual Licences,IT Directorate,Www.Aha.Io 1-888-926-2240,H57720170415limsoxxsd,408.6,Not Applicable
Department for Business Energy and Industrial Strategy,Intellectual Property Office,07/04/2017,Perpetual Licences,Projects,Usersnapcom,H57720170411gghrokdgj,124.19,Not Applicable
Department for Business Energy and Industrial Strategy,Intellectual Property Office,01/04/2017,Perpetual Licences,IT Directorate,Msft *<e01003k0ey>,H57720170404kxmwsrjff,388.5,Not Applicable
Department for Business Energy and Industrial Strategy,Intellectual Property Office,19/04/2017,Perpetual Licences,IT Directorate,Fsprg.Com Ncrunch.Com,H57720170422memczfisg,284.46,Not Applicable
Department for Business Energy and Industrial Strategy,Intellectual Property Office,11/04/2017,Plant & Machinery Gross,Trade Mark Directorate,Newport Transport Ltd,12114,550,Not Applicable
Department for Business Energy and Industrial Strategy,Intellectual Property Office,19/04/2017,Postage & Delivery Costs,People Places & Serv Directorate,Royal Mail,9054202952,28.9,Not Applicable
Department for Business Energy and Industrial Strategy,Intellectual Property Office,24/04/2017,Postage & Delivery Costs,People Places & Serv Directorate,Allstar Business Solutions Ltd,E2008173233,43.31,Not Applicable
Department for Business Energy and Industrial Strategy,Intellectual Property Office,03/04/2017,Postage & Delivery Costs,People Places & Serv Directorate,RICO LOGISTICS LTD,860649,44.96,Not Applicable
Department for Business Energy and Industrial Strategy,Intellectual Property Office,07/04/2017,Postage & Delivery Costs,People Places & Serv Directorate,Parcelforce Worldwide,9054185514,64.16,Not Applicable
Department for Business Energy and Industrial Strategy,Intellectual Property Office,11/04/2017,Postage & Delivery Costs,People Places & Serv Directorate,Days Rental,1674975,252,Not Applicable
Department for Business Energy and Industrial Strategy,Intellectual Property Office,06/04/2017,Postage & Delivery Costs,People Places & Serv Directorate,Neopost Finance Ltd,2017022706,357.23,Not Applicable
Department for Business Energy and Industrial Strategy,Intellectual Property Office,26/04/2017,Postage & Delivery Costs,People Places & Serv Directorate,DHL International (UK) Ltd,BRS0358606,1045.85,Not Applicable
Department for Business Energy and Industrial Strategy,Intellectual Property Office,19/04/2017,Postage & Delivery Costs,People Places & Serv Directorate,DHL International (UK) Ltd,BRS0343272,1155.51,Not Applicable
Department for Business Energy and Industrial Strategy,Intellectual Property Office,07/04/2017,Postage & Delivery Costs,People Places & Serv Directorate,Parcelforce Worldwide,9054184924,1206.5,Not Applicable
Department for Business Energy and Industrial Strategy,Intellectual Property Office,24/04/2017,Postage & Delivery Costs,People Places & Serv Directorate,Royal Mail,9054273125,1223.51,Not Applicable
Department for Business Energy and Industrial Strategy,Intellectual Property Office,07/04/2017,Postage & Delivery Costs,People Places & Serv Directorate,DHL International (UK) Ltd,BRS0297154,1432.05,Not Applicable
Department for Business Energy and Industrial Strategy,Intellectual Property Office,12/04/2017,Postage & Delivery Costs,People Places & Serv Directorate,DHL International (UK) Ltd,BRS0327660,1813.36,Not Applicable
Department for Business Energy and Industrial Strategy,Intellectual Property Office,12/04/2017,Postage & Delivery Costs,People Places & Serv Directorate,Royal Mail,9054192857,1875.37,Not Applicable
Department for Business Energy and Industrial Strategy,Intellectual Property Office,07/04/2017,Postage & Delivery Costs,People Places & Serv Directorate,CitySprint (UK) Ltd,2087875,3099.53,Not Applicable
Department for Business Energy and Industrial Strategy,Intellectual Property Office,06/04/2017,Postage & Delivery Costs,People Places & Serv Directorate,Neopost Finance Ltd,NE9000335-06APR,10000,Not Applicable
Department for Business Energy and Industrial Strategy,Intellectual Property Office,20/04/2017,Seminars and Confereces,IT Directorate,Amazon UK Marketplace,H57720170422rtbpxjpxa,5.02,Not Applicable
Department for Business Energy and Industrial Strategy,Intellectual Property Office,20/04/2017,Seminars and Confereces,IT Directorate,Amazon UK Marketplace,H57720170422tknvtxcei,2.84,Not Applicable
Department for Business Energy and Industrial Strategy,Intellectual Property Office,20/04/2017,Seminars and Confereces,IT Directorate,Amazon UK Marketplace,H57720170422tvymlrxlg,5.47,Not Applicable
Department for Business Energy and Industrial Strategy,Intellectual Property Office,20/04/2017,Seminars and Confereces,IT Directorate,Amazon UK Marketplace,H57720170422erhniphmb,17.4,Not Applicable
Department for Business Energy and Industrial Strategy,Intellectual Property Office,20/04/2017,Seminars and Confereces,IT Directorate,Amazon UK Marketplace,H57720170422jkspbnmhw,4.95,Not Applicable
Department for Business Energy and Industrial Strategy,Intellectual Property Office,20/04/2017,Seminars and Confereces,IT Directorate,Amazon UK Marketplace,H57720170422lldchgjxx,18.26,Not Applicable
Department for Business Energy and Industrial Strategy,Intellectual Property Office,20/04/2017,Seminars and Confereces,IT Directorate,Amazon UK Marketplace,H57720170422mlvjmqjdk,7.41,Not Applicable
Department for Business Energy and Industrial Strategy,Intellectual Property Office,20/04/2017,Seminars and Confereces,IT Directorate,Amazon UK Marketplace,H57720170422bfcjntbbq,1.06,Not Applicable
Department for Business Energy and Industrial Strategy,Intellectual Property Office,19/04/2017,Seminars and Confereces,IT Directorate,Amazon UK Marketplace,H57720170421rbhtehvzk,13.31,Not Applicable
Department for Business Energy and Industrial Strategy,Intellectual Property Office,19/04/2017,Seminars and Confereces,IT Directorate,Amazon UK Marketplace,H57720170421lbfqtjjkv,2.18,Not Applicable
Department for Business Energy and Industrial Strategy,Intellectual Property Office,19/04/2017,Seminars and Confereces,IT Directorate,Amazon UK Marketplace,H57720170421xaxdaqofr,0.99,Not Applicable
Department for Business Energy and Industrial Strategy,Intellectual Property Office,19/04/2017,Seminars and Confereces,IT Directorate,Amazon UK Marketplace,H57720170421golucxrvk,6.25,Not Applicable
Department for Business Energy and Industrial Strategy,Intellectual Property Office,19/04/2017,Seminars and Confereces,IT Directorate,Amazon UK Marketplace,H57720170421jhlyilbtx,1.88,Not Applicable
Department for Business Energy and Industrial Strategy,Intellectual Property Office,19/04/2017,Seminars and Confereces,IT Directorate,Amazon UK Marketplace,H57720170421fjlhhxofl,12.94,Not Applicable
Department for Business Energy and Industrial Strategy,Intellectual Property Office,10/04/2017,Seminars and Confereces,IT Directorate,Amazon UK Retail Amazon.C,H57720170412ycqffsxjl,26.98,Not Applicable
Department for Business Energy and Industrial Strategy,Intellectual Property Office,12/04/2017,Seminars and Confereces,People Places & Serv Directorate,Coveritlive Scribbl Cov,H57720170414gvxfmyiyf,40.43,Not Applicable
Department for Business Energy and Industrial Strategy,Intellectual Property Office,21/04/2017,Seminars and Confereces,International Policy Directorate,B Network,H57720170425vgcwolpmp,256.4,Not Applicable
Department for Business Energy and Industrial Strategy,Intellectual Property Office,20/04/2017,Seminars and Confereces,International Policy Directorate,B Network,H57720170422bqhdygays,257.16,Not Applicable
Department for Business Energy and Industrial Strategy,Intellectual Property Office,13/04/2017,Seminars and Confereces,International Policy Directorate,B Network,H57720170415xjhtjlpmo,353.23,Not Applicable
Department for Business Energy and Industrial Strategy,Intellectual Property Office,12/04/2017,Seminars and Confereces,International Policy Directorate,B Network,H57720170414sbnypsacf,260.15,Not Applicable
Department for Business Energy and Industrial Strategy,Intellectual Property Office,12/04/2017,Seminars and Confereces,International Policy Directorate,B Network,H57720170414plftcycyx,173.43,Not Applicable
Department for Business Energy and Industrial Strategy,Intellectual Property Office,06/04/2017,Seminars and Confereces,International Policy Directorate,B Network,H57720170408vxyizmbmn,261.85,Not Applicable
Department for Business Energy and Industrial Strategy,Intellectual Property Office,06/04/2017,Seminars and Confereces,International Policy Directorate,B Network,H57720170408xvyvombki,-84.99,Not Applicable
Department for Business Energy and Industrial Strategy,Intellectual Property Office,06/04/2017,Seminars and Confereces,International Policy Directorate,B Network,H57720170408sgbehlnrr,261.85,Not Applicable
Department for Business Energy and Industrial Strategy,Intellectual Property Office,06/04/2017,Seminars and Confereces,International Policy Directorate,B Network,H57720170408tpfkyxsze,261.85,Not Applicable
Department for Business Energy and Industrial Strategy,Intellectual Property Office,16/04/2017,Seminars and Confereces,People Places & Serv Directorate,Przcharge.Prezi.Com,H57720170418kncscqgog,15.6,Not Applicable
Department for Business Energy and Industrial Strategy,Intellectual Property Office,30/03/2017,Software Maintenance,IT Directorate,Browserstack.Com,H57720170404miwcsyocz,197.57,Not Applicable
Department for Business Energy and Industrial Strategy,Intellectual Property Office,27/04/2017,Software Maintenance,IT Directorate,Msft *<e03003oo1y>,H57720170429zrnmuddaq,54.24,Not Applicable
Department for Business Energy and Industrial Strategy,Intellectual Property Office,25/04/2017,Software Maintenance,IT Directorate,Paypal,H57720170427jbwlfsdxn,103.41,Not Applicable
Department for Business Energy and Industrial Strategy,Intellectual Property Office,12/04/2017,Software Maintenance,Trade Mark Directorate,The Intellectual Property,H57720170414dalfdbatb,70,Not Applicable
Department for Business Energy and Industrial Strategy,Intellectual Property Office,12/04/2017,Software Maintenance,Trade Mark Directorate,The Intellectual Property,H57720170414wytqdnkwy,-70,Not Applicable
Department for Business Energy and Industrial Strategy,Intellectual Property Office,16/04/2017,Software Maintenance,Projects,Cloudflare,H57720170419bhlslmlyl,8.23,Not Applicable
Department for Business Energy and Industrial Strategy,Intellectual Property Office,24/04/2017,Software Maintenance,IT Directorate,Amazon UK Marketplace,H57720170426tksnayqmv,29.98,Not Applicable
Department for Business Energy and Industrial Strategy,Intellectual Property Office,24/04/2017,Software Maintenance,IT Directorate,Amazon UK Marketplace,H57720170426ixjogftox,61.55,Not Applicable
Department for Business Energy and Industrial Strategy,Intellectual Property Office,19/04/2017,Software Maintenance,IT Directorate,Www.Internetvoipphone.,H57720170421jwdtlpwkc,96,Not Applicable
Department for Business Energy and Industrial Strategy,Intellectual Property Office,28/04/2017,Staff Costs,People Places & Serv Directorate,Sodexo Motivation Solutions UK Ltd,REFUND 27APR17,-1153.4,Not Applicable
Department for Business Energy and Industrial Strategy,Intellectual Property Office,20/04/2017,Staff Costs,People Places & Serv Directorate,Personal expenses,AH000000108,14,Not Applicable
Department for Business Energy and Industrial Strategy,Intellectual Property Office,07/04/2017,Staff Costs,Finance Directorate,M Bowden,KP431699,23.4,Not Applicable
Department for Business Energy and Industrial Strategy,Intellectual Property Office,05/04/2017,Staff Costs,People Places & Serv Directorate,Personal expenses,AH000000099,25,Not Applicable
Department for Business Energy and Industrial Strategy,Intellectual Property Office,18/04/2017,Staff Costs,People Places & Serv Directorate,Personal expenses,AH000000103,25,Not Applicable
Department for Business Energy and Industrial Strategy,Intellectual Property Office,18/04/2017,Staff Costs,People Places & Serv Directorate,Personal expenses,AH000000104,25,Not Applicable
Department for Business Energy and Industrial Strategy,Intellectual Property Office,11/04/2017,Staff Costs,People Places & Serv Directorate,KPMG LLP (CSL),5501406638,42,Not Applicable
Department for Business Energy and Industrial Strategy,Intellectual Property Office,06/04/2017,Staff Costs,Patent Directorate,Philip Lawrence,P.E.T.,95.74,Not Applicable
Department for Business Energy and Industrial Strategy,Intellectual Property Office,18/04/2017,Staff Costs,People Places & Serv Directorate,Personal expenses,AH000000105,153,Not Applicable
Department for Business Energy and Industrial Strategy,Intellectual Property Office,04/04/2017,Staff Costs,People Places & Serv Directorate,Personal expenses,AH000000100,155,Not Applicable
Department for Business Energy and Industrial Strategy,Intellectual Property Office,03/04/2017,Staff Costs,Patent Directorate,Haynes International Motor Museum,2094,187.5,Not Applicable
Department for Business Energy and Industrial Strategy,Intellectual Property Office,28/04/2017,Staff Costs,People Places & Serv Directorate,Psysoft Ltd,3524,201.6,Not Applicable
Department for Business Energy and Industrial Strategy,Intellectual Property Office,12/04/2017,Staff Costs,People Places & Serv Directorate,Personal expenses,AH000000102,222,Not Applicable
Department for Business Energy and Industrial Strategy,Intellectual Property Office,19/04/2017,Staff Costs,People Places & Serv Directorate,British Red Cross,N1092723,322.8,Not Applicable
Department for Business Energy and Industrial Strategy,Intellectual Property Office,11/04/2017,Staff Costs,People Places & Serv Directorate,British Red Cross,N1112028,322.8,Not Applicable
Department for Business Energy and Industrial Strategy,Intellectual Property Office,26/04/2017,Staff Costs,Projects,GovNet Communications,119382,474,Not Applicable
Department for Business Energy and Industrial Strategy,Intellectual Property Office,04/04/2017,Staff Costs,Projects,RADA Enterprise,17050,600,Not Applicable
Department for Business Energy and Industrial Strategy,Intellectual Property Office,12/04/2017,Staff Costs,People Places & Serv Directorate,British Computer Society,1387721,625.5,Not Applicable
Department for Business Energy and Industrial Strategy,Intellectual Property Office,03/04/2017,Staff Costs,People Places & Serv Directorate,British Red Cross,N1108737,645.6,Not Applicable
Department for Business Energy and Industrial Strategy,Intellectual Property Office,28/04/2017,Staff Costs,People Places & Serv Directorate,Acorns Nurseries Ltd,12287,660,Not Applicable
Department for Business Energy and Industrial Strategy,Intellectual Property Office,18/04/2017,Staff Costs,People Places & Serv Directorate,Involve Me Training and Development Ltd,128,675,Not Applicable
Department for Business Energy and Industrial Strategy,Intellectual Property Office,21/04/2017,Staff Costs,People Places & Serv Directorate,Quadrilect Ltd,33518,834,Not Applicable
Department for Business Energy and Industrial Strategy,Intellectual Property Office,11/04/2017,Staff Costs,People Places & Serv Directorate,Acorn Recruitment Ltd,APS02958,1020,Not Applicable
Department for Business Energy and Industrial Strategy,Intellectual Property Office,12/04/2017,Staff Costs,Patent Directorate,Salford Profesional Development Ltd,PI022198,1800,Not Applicable
Department for Business Energy and Industrial Strategy,Intellectual Property Office,24/04/2017,Staff Costs,Innovation Directorate,HM TREASURY,34156,2857.92,Not Applicable
Department for Business Energy and Industrial Strategy,Intellectual Property Office,06/04/2017,Staff Costs,People Places & Serv Directorate,MyCSP Ltd,9275,3840,Not Applicable
Department for Business Energy and Industrial Strategy,Intellectual Property Office,05/04/2017,Staff Costs,People Places & Serv Directorate,Redrock Consulting Ltd,6689,4126.32,Not Applicable
Department for Business Energy and Industrial Strategy,Intellectual Property Office,11/04/2017,Staff Costs,People Places & Serv Directorate,KPMG LLP (CSL),5501401348,4200,Not Applicable
Department for Business Energy and Industrial Strategy,Intellectual Property Office,24/04/2017,Staff Costs,IT Directorate,Assist Knowledge Development Ltd,238,4596,Not Applicable
Department for Business Energy and Industrial Strategy,Intellectual Property Office,25/04/2017,Staff Costs,People Places & Serv Directorate,Video Arts Ltd Number 2 Account,IN-01930,4800,Not Applicable
Department for Business Energy and Industrial Strategy,Intellectual Property Office,28/04/2017,Staff Costs,People Places & Serv Directorate,Beamans Ltd,T319,4813.4,Not Applicable
Department for Business Energy and Industrial Strategy,Intellectual Property Office,28/04/2017,Staff Costs,People Places & Serv Directorate,Redrock Consulting Ltd,6747,5363.88,Not Applicable
Department for Business Energy and Industrial Strategy,Intellectual Property Office,21/04/2017,Staff Costs,IT Directorate,Hippo Software,HIPPO-17-20,6239.41,Not Applicable
Department for Business Energy and Industrial Strategy,Intellectual Property Office,13/04/2017,Staff Costs,People Places & Serv Directorate,Sodexo Motivation Solutions UK Ltd,3302439,7067.59,Not Applicable
Department for Business Energy and Industrial Strategy,Intellectual Property Office,13/04/2017,Staff Costs,People Places & Serv Directorate,Sodexo Motivation Solutions UK Ltd,3302466,10936.41,Not Applicable
Department for Business Energy and Industrial Strategy,Intellectual Property Office,06/04/2017,Staff Costs,IT Directorate,QA Ltd,ISL140199,11400,Not Applicable
Department for Business Energy and Industrial Strategy,Intellectual Property Office,06/04/2017,Staff Costs,IT Directorate,QA Ltd,ISL140200,11400,Not Applicable
Department for Business Energy and Industrial Strategy,Intellectual Property Office,20/04/2017,T&S O-seas excl EPOQUE,Trade Mark Directorate,B Network,H57720170422miwbvmrme,587.67,Not Applicable
Department for Business Energy and Industrial Strategy,Intellectual Property Office,19/04/2017,T&S O-seas excl EPOQUE,Trade Mark Directorate,B Network,H57720170421enzevtxcm,475.81,Not Applicable
Department for Business Energy and Industrial Strategy,Intellectual Property Office,19/04/2017,T&S O-seas excl EPOQUE,Trade Mark Directorate,B Network,H57720170421eotgpgkfc,475.81,Not Applicable
Department for Business Energy and Industrial Strategy,Intellectual Property Office,19/04/2017,T&S O-seas excl EPOQUE,Trade Mark Directorate,B Network,H57720170421cdszxxqdh,237.9,Not Applicable
Department for Business Energy and Industrial Strategy,Intellectual Property Office,19/04/2017,T&S O-seas excl EPOQUE,Trade Mark Directorate,B Network,H57720170421djoncpflw,317.2,Not Applicable
Department for Business Energy and Industrial Strategy,Intellectual Property Office,19/04/2017,T&S O-seas excl EPOQUE,Trade Mark Directorate,B Network,H57720170421fmowrjjfo,475.81,Not Applicable
Department for Business Energy and Industrial Strategy,Intellectual Property Office,19/04/2017,T&S O-seas excl EPOQUE,Trade Mark Directorate,B Network,H57720170421jvlqbnmep,237.9,Not Applicable
Department for Business Energy and Industrial Strategy,Intellectual Property Office,19/04/2017,T&S O-seas excl EPOQUE,Trade Mark Directorate,B Network,H57720170421kgjtelirt,-154.48,Not Applicable
Department for Business Energy and Industrial Strategy,Intellectual Property Office,19/04/2017,T&S O-seas excl EPOQUE,Trade Mark Directorate,B Network,H57720170421rrtgcpppr,317.2,Not Applicable
Department for Business Energy and Industrial Strategy,Intellectual Property Office,06/04/2017,T&S UK,International Policy Directorate,B Network,H57720170408servjehup,218.66,Not Applicable
